Cogmind - Beta 17.1 @@@ ROGUE MODE // 2026.09.06 @ 22:04:40 Player: H3-MLN Result: Destroyed by T6-YXL(E) with Barrage Gun Performance ------------- Evolutions (1) 500 Regions Visited (5) 1000 Robots Destroyed (89) 445 Value Destroyed (1996) 1996 Prototype IDs (37) 740 Alien Tech Used (0) 0 Bonus (10298) 10298 TOTAL SCORE: 14979 Bonus ------- High Alert Combat Kills 88 Follower Combat Kills 983 Prayed to X0-1V1 5000 Major X0-1V1 Interference 4050 Registered with UFD 300 Friendly Fire -123 Cogmind --------- Core Integrity 0/250 Matter 218/300 Energy 170/170 System Corruption 0% Temperature Hot (293) Movement Treading (240) Ox1 Location -9/Scraptown Parts ------- > --- POWER (1) -------- Mini Fusion Reactor (fused) > --- PROPULSION (3) --- Improved Medium Treads > --- UTILITY (2) ------ High-capacity Storage Unit Self-contained Transmogrifier > --- WEAPON (3) ------- (None) > --- INVENTORY (20) --- Light Treads Light Treads Compact Wheel Huge Storage Unit High-capacity Matter Pod (200) High-capacity Matter Pod (190) 0b10 Decoder Chip [Generic] Hardened Light Armor Plating Authchip [Weapon] A0-MCA's Component Scanner Improved EM Shotgun Datajack CPS Tube (2) CPS Tube (2) Peak State ------------ > --- POWER ------------ Light Neutrino Core > --- PROPULSION ------- Spiked Medium Treads Heavy Treads > --- UTILITY ---------- Self-contained Transmogrifier X0-1V1's Piety Tracker > --- WEAPON ----------- Precision Assault Rifle Makeshift Shrapnel Gun Makeshift Shrapnel Gun > --- INVENTORY -------- Improved Medium Treads 0b10 Decoder Chip [Generic] A0-MCA's Component Scanner Heavy Missile Launcher Datajack [Rating: 61] Favorites ----------- Power Deuterium Engine Engine Deuterium Engine Power Core Hybrid Fission Core Reactor Antimatter Reactor Propulsion Heavy Treads Treads Heavy Treads Wheel Compact Wheel Flight Unit Makeshift Flight Unit Utility Self-contained Transmogrifier Device Self-contained Transmogrifier Storage High-capacity Storage Unit Protection Light Armor Plating Weapon Heavy Flail Energy Gun Makeshift Laser Energy Cannon Heavy Particle Cannon Ballistic Gun Assault Rifle Ballistic Cannon Magnetic Acceleration Cannon Launcher Mini Grenade Launcher Impact Weapon Heavy Flail Slashing Weapon Katana Piercing Weapon Makeshift Spear Special Melee Weapon Datajack Build | -11 -10 -9 -9 -9 -9 ------- Run | Yrd Mat Mat Sto Rec Scr Slots Evolved 2 | . . 2 . . . Power . | . . . . . . Propulsion 1 | . . 1 . . . Utility . | . . . . . . Weapon 1 | . . 1 . . . Parts Attached 31 | 8 5 10 1 . 7 Power 4 | 1 . 3 . . . Engine 4 | 1 . 3 . . . Core . | . . . . . . Reactor . | . . . . . . Propulsion 7 | 2 . 4 . . 1 Treads 6 | 2 . 3 . . 1 Leg . | . . . . . . Wheel 1 | . . 1 . . . Hover . | . . . . . . Flight . | . . . . . . Utility 7 | 3 2 . 1 . 1 Device 3 | 2 . . . . 1 Storage 3 | 1 1 . 1 . . Processor . | . . . . . . Hackware . | . . . . . . Protection 1 | . 1 . . . . Artifact . | . . . . . . Weapon 13 | 2 3 3 . . 5 Energy Gun 1 | . . . . . 1 Energy Cannon 4 | . . 2 . . 2 Ballistic Gun 5 | 2 2 1 . . . Ballistic Cannon . | . . . . . . Launcher 2 | . 1 . . . 1 Special Weapon . | . . . . . . Impact Weapon . | . . . . . . Slashing Weapon . | . . . . . . Piercing Weapon . | . . . . . . Special Melee Weapon 1 | . . . . . 1 Unidentified Prototypes 2 | . . 1 . . 1 Parts Lost 8 | . . . . . 8 Power . | . . . . . . Propulsion 2 | . . . . . 2 Utility . | . . . . . . Weapon 6 | . . . . . 6 Highest Loss Streak 7 | . . . . . 7 To Critical Strikes 1 | . . . . . 1 Average Backups 14 | 2 9 18 19 20 10 Power . | . 1 . . . . Propulsion 2 | 1 2 3 4 3 1 Utility 4 | . 1 5 5 6 3 Weapon 5 | . 4 8 8 8 2 Tool/Special . | . . . . . . Unused Backups 24 | . 1 5 3 . 15 Power 1 | . . 1 . . . Propulsion 2 | . . . . . 2 Utility 10 | . . 1 2 . 7 Weapon 8 | . 1 3 1 . 3 Tool/Special 3 | . . . . . 3 Average Slot Usage (%) 93 | . 100 96 88 94 93 Engine 5 | . 14 16 2 . 2 Core 3 | . . . 9 10 1 Reactor 2 | . . . . . 6 Treads 25 | . 28 27 18 26 28 Device 13 | . 9 11 11 11 17 Storage 8 | . 14 11 11 11 4 Energy Gun 3 | . . . . 5 6 Ballistic Gun 7 | . 28 5 . 2 9 Ballistic Cannon 1 | . . . 3 6 . Launcher 5 | . . 19 7 . . Impact Weapon 7 | . . . 22 13 1 Slashing Weapon 2 | . . . . 4 5 Piercing Weapon 2 | . . . . . 5 Peak Build Rating 61 | 7 17 39 50 50 61 Average Rating 43 | 4 7 28 45 47 55 On Entrance 26 | . 7 17 39 46 49 Avg Prop Armor Cover (%) 1 | . . 2 1 1 . Naked Turns . | . . . . . . Heaviest Build 80 | 11 50 67 67 80 66 Greatest Support 100 | 40 40 93 98 98 100 Greatest Overweight (x) 1 | . 1 1 . . 1 Average Overweight (x) . | . . . . . . Largest Inventory Capacity 20 | 8 20 20 20 20 20 Average Capacity 15 | 6 18 20 20 20 10 Most Carried 20 | 4 14 20 20 20 20 Average Carried 14 | 3 9 18 19 19 9 Final Capacity 20 | 8 20 20 20 20 20 Final Carried 20 | 4 14 20 20 20 14 Transmogrified Parts 84 | . . 17 19 13 35 Integrity Recovered 802 | . . 151 278 246 127 Class Distribution -------------------- 39% | Commander-Mutant 34% | Mutant 7% | Commander-Tank 5% | Tank 5% | Gunner 3% | Commander-Gunner 3% | Bomber Dominant Class ---------------- Mutant | -10/Materials Mutant | -9/Materials Mutant | -9/Storage Commander-Mutant | -9/Recycling Commander-Mutant | -9/Scraptown Resources | -11 -10 -9 -9 -9 -9 ----------- Run | Yrd Mat Mat Sto Rec Scr Matter Collected 2146 | 278 9 834 598 36 391 Remotely . | . . . . . . Salvage Created 2707 | 126 13 818 1132 . 618 Parts 137 | 5 3 61 40 . 28 Haulers Intercepted 8 | . . 3 5 . . Recyclers Shooed 3 | . . 1 2 . . Parts Field Recycled . | . . . . . . Retrieved Matter . | . . . . . . Parts Self-Destructed . | . . . . . . Prevented . | . . . . . . Parts Restored . | . . . . . . Kills | -11 -10 -9 -9 -9 -9 ------- Run | Yrd Mat Mat Sto Rec Scr Combat Hostiles Destroyed 49 | . 3 20 15 . 11 Melee 4 | . . . 4 . . Guns 4 | . . 1 . . 3 Cannons 6 | . . 3 1 . 2 AOE 31 | . 3 16 6 . 6 Classes Destroyed 16 | 2 1 8 2 . 3 Worker 13 | . . 9 4 . . Builder 5 | . . 1 4 . . Tunneler 1 | 1 . . . . . Hauler 8 | . . 3 5 . . Recycler 6 | 1 . 2 3 . . Mechanic 1 | . . . 1 . . Operator 1 | . . 1 . . . Watcher 5 | . . 3 2 . . Swarmer 13 | . 3 7 3 . . Grunt 9 | . . 5 4 . . Brawler 2 | . . . 1 . 1 Duelist 1 | . . 1 . . . Sentry 14 | . . 7 7 . . Bolteater 1 | . . . . . 1 Ranger 1 | . . . . . 1 Scrapper 6 | . . . . . 6 Thug 2 | . . . . . 2 Best Kill Streak 8 | 2 3 5 6 . 8 Combat Bots Only 8 | . 3 4 3 . 8 Max Kills in Single Turn 5 | 1 2 5 3 . 2 Gunslinging . | . . . . . . Exploded 4 | . 2 4 1 . 2 Melee 1 | . . . 1 . . Uniques/NPCs Destroyed . | . . . . . . Combat | -11 -10 -9 -9 -9 -9 -------- Run | Yrd Mat Mat Sto Rec Scr Hostile Shots Fired 192 | . 9 47 56 . 80 Missed 54 | . 2 16 18 . 18 Hits 138 | . 7 31 38 . 62 Melee 7 | . . 2 4 . 1 Projectile 131 | . 7 29 34 . 61 Critical Strikes 7 | . . 1 1 . 5 Damage Taken 3100 | . 95 487 622 . 1896 Core 409 | . 20 53 102 . 234 Absorbed by Shields . | . . . . . . Core Remaining (%) 90 | 100 80 . . . . Volleys Fired 124 | 8 4 59 12 1 40 Largest 3 | 2 2 3 3 1 3 Hottest 183 | 40 40 143 108 44 183 Shots Fired 188 | 16 6 85 19 3 59 Gun 59 | 16 4 19 . 1 19 Cannon 65 | . . 27 4 2 32 Launcher 64 | . 2 39 15 . 8 Special . | . . . . . . Kinetic 64 | 16 4 19 4 2 19 Thermal 60 | . . 27 . 1 32 Explosive 57 | . 2 39 8 . 8 Electromagnetic 7 | . . . 7 . . Robot Hit Streak 8 | 4 2 7 8 . 8 Robot Miss Streak 2 | 2 1 2 1 1 2 Penetration Max 1 | . . . . . 1 Secondary Targets . | . . . . . . Shots Hit Robots 152 | 9 3 51 49 1 39 Core Hits 113 | 4 4 50 22 . 33 Critical Kills 4 | 1 . . 1 . 2 Critical Parts Destroyed 12 | . . 1 8 . 3 Critical Strikes 18 | 1 . 1 11 . 5 Destroy 7 | 1 . 1 . . 5 Smash 11 | . . . 11 . . Melee Attacks 60 | . . . 57 1 2 Impact 58 | . . . 57 1 . Slashing . | . . . . . . Piercing . | . . . . . . Sneak Attacks 13 | . . . 10 1 2 Combat Hostiles . | . . . . . . Follow-up Attacks 9 | . . . 9 . . Damage Inflicted 7432 | 71 238 2580 3008 58 1477 Guns 370 | 71 29 192 . . 78 Cannons 1203 | . . 467 59 . 677 Explosions 3431 | . 209 1809 691 . 722 Melee 2280 | . . . 2222 58 . Ramming 148 | . . 112 36 . . Kinetic 429 | 71 29 192 59 . 78 Thermal 1194 | . . 467 50 . 677 Explosive 3094 | . 209 1809 354 . 722 Electromagnetic 287 | . . . 287 . . Impact 2280 | . . . 2222 58 . Slashing . | . . . . . . Piercing . | . . . . . . Highest Corruption 4 | . . 2 4 4 . Average Corruption 2 | . . 2 2 4 . Corruption Purged . | . . . . . . Corruption Blocked . | . . . . . . Effects 50 | . . 7 25 18 . Message Errors 16 | . . 2 10 4 . Matter Fused 17 | . . 2 8 7 . Heat Flow Errors 1 | . . . 1 . . Energy Discharges 10 | . . 1 4 5 . Data Loss (minor) 2 | . . 1 1 . . Data Loss (major) 1 | . . 1 . . . Misfires 2 | . . . . 2 . Alerts 1 | . . . 1 . . Overload Shots . | . . . . . . Overflow Damage 906 | . 5 56 827 . 18 Projectiles 45 | . . 16 29 . . Explosions 69 | . 5 40 6 . 18 Melee 792 | . . . 792 . . Knockbacks 4 | . . . 4 . . Impact 3 | . . . 3 . . Kinetic . | . . . . . . Secondary 1 | . . . 1 . . Self-Inflicted Damage 192 | . 38 40 20 . 94 Shots 6 | . 1 2 1 . 2 Rammed 18 | . . 9 9 . . Targets Rammed 23 | . . 13 10 . . Kicked . | . . . . . . Crushed 5 | . . 4 1 . . Highest Temperature 401 | . . 252 255 24 401 Average Temperature 110 | . . 68 47 10 210 Received Heat Transfer 357 | . . 147 168 . 42 Effects 6 | . . 1 . . 5 Energy Bleed 1 | . . . . . 1 Interference 4 | . . 1 . . 3 Matter Decay 1 | . . . . . 1 Siege Activations . | . . . . . . Martial Activations . | . . . . . . Shielding Activations . | . . . . . . Robots Disrupted . | . . . . . . Combat Hostiles . | . . . . . . Robots Corrupted 9 | . . . 9 . . Combat Hostiles 4 | . . . 4 . . Parts Fried 12 | . . . 12 . . Impact Corruptions 23 | . . . 23 . . Robots Melted 1 | . . . 1 . . Combat Hostiles . | . . . . . . Parts Melted 3 | . . 1 1 . 1 Heat Transferred 1752 | . . 777 100 . 875 Parts Sabotaged . | . . . . . . Parts Stolen . | . . . . . . Parts Stripped . | . . . . . . Power Chain Reactions 2 | . . . 2 . . Alert | -11 -10 -9 -9 -9 -9 ------- Run | Yrd Mat Mat Sto Rec Scr Maximum Alert Level 2 | . . 2 2 1 . Low Security (%) 33 | 100 100 26 . 65 . Level 1 34 | . . 13 65 34 . Level 2 31 | . . 60 34 . . Level 3 . | . . . . . . Level 4 . | . . . . . . Level 5 . | . . . . . . High Security . | . . . . . . Max Security . | . . . . . . Peak Influence 548 | 10 81 548 481 292 . Initial 218 | . . . 218 177 . Average 280 | . 16 343 376 177 . Influence Increases 2114 | 10 102 898 797 307 . Destroy 0b10 Robot/C 820 | . 60 400 340 20 . Destroy 0b10 Robot/NC 200 | 10 . 95 95 . . Destroy Leader 256 | . 10 122 124 . . Allied During Kill 43 | . . . 34 9 . Successful Hack 86 | . 21 6 27 32 . Select Force Hacks 30 | . . . . 30 . Disable Machine 195 | . . 75 105 15 . Destroy Structure 254 | . 11 185 57 1 . Lose Combat Pursuer 30 | . . 15 15 . . Miscellaneous 200 | . . . . 200 . Influence Decreases 2114 | 10 102 380 859 655 108 Entered New Map 687 | . . . 300 279 108 Time Decay 1407 | 10 102 380 559 356 . Lost Ally 20 | . . . . 20 . Squads Dispatched 3 | . . . 1 2 . Investigation 3 | . . . 1 2 . Extermination . | . . . . . . Reinforcement . | . . . . . . Assault . | . . . . . . Garrison . | . . . . . . Intercept . | . . . . . . Searches Triggered . | . . . . . . Construction Impeded . | . . . . . . Haulers Reinforced . | . . . . . . Active Scanning Responses . | . . . . . . Cargo Convoy Interrupts . | . . . . . . Stealth | -11 -10 -9 -9 -9 -9 --------- Run | Yrd Mat Mat Sto Rec Scr Distress Signals 9 | . . 7 2 . . Communications Jammed . | . . . . . . Distress Signals . | . . . . . . Times Spotted 118 | . 5 36 22 1 54 Peak Tracking Total 21 | . 3 5 3 1 21 Tactical Retreats 6 | . . 1 1 . 4 Traps | -11 -10 -9 -9 -9 -9 ------- Run | Yrd Mat Mat Sto Rec Scr Traps Triggered 3 | . . . 3 . . Indirectly . | . . . . . . Trap Hack Attempts . | . . . . . . Triggered . | . . . . . . Disarmed . | . . . . . . Reprogrammed . | . . . . . . Reused . | . . . . . . Traps Extracted . | . . . . . . Installed . | . . . . . . Triggered . | . . . . . . Machines | -11 -10 -9 -9 -9 -9 ---------- Run | Yrd Mat Mat Sto Rec Scr Machines Disabled 19 | . . 5 7 1 6 Max in Single Turn 4 | . . 2 3 1 4 Garrison Access 1 | . . . 1 . . Machines Repaired . | . . . . . . Machines Dismantled . | . . . . . . Machines Sabotaged . | . . . . . . Overloaded Fab Kills . | . . . . . . Hacking | -11 -10 -9 -9 -9 -9 --------- Run | Yrd Mat Mat Sto Rec Scr Machines Accessed 26 | . 2 5 11 7 1 Terminals 23 | . 2 5 10 6 . Fabricators . | . . . . . . Repair Stations . | . . . . . . Recycling Units 1 | . . . . 1 . Scanalyzers . | . . . . . . Garrison Access 1 | . . . 1 . . Total Hacks 77 | . 7 14 26 25 5 Successful 43 | . 4 5 13 16 5 Failed 34 | . 3 9 13 9 . Catastrophic 8 | . 1 4 2 1 . Database Lockouts . | . . . . . . Manual 45 | . 5 9 14 17 . Terminals 69 | . 7 14 25 23 . Fabricators . | . . . . . . Repair Stations . | . . . . . . Recycling Units 2 | . . . . 2 . Scanalyzers . | . . . . . . Garrison Access 1 | . . . 1 . . Terminal Hacks 32 | . 4 5 11 7 5 Record 5 | . . . . . 5 Part Schematic 3 | . 1 . 1 1 . Robot Schematic 2 | . . . 1 1 . Robot Analysis 6 | . 2 1 1 2 . Prototype ID Bank 6 | . 1 2 1 2 . Open Door 3 | . . . 3 . . Branch Access Points 1 | . . 1 . . . Terminal Index 1 | . . . . 1 . Locate Traps 2 | . . 1 1 . . Hauler Manifests 1 | . . . 1 . . Zone Layout 2 | . . . 2 . . Fabricator Hacks . | . . . . . . Repair Station Hacks . | . . . . . . Recycling Unit Hacks 1 | . . . . 1 . Report Inventory 1 | . . . . 1 . Scanalyzer . | . . . . . . Garrison Access Hacks 1 | . . . 1 . . Seal Access 1 | . . . 1 . . Unauthorized Hacks 9 | . . . 1 8 . Terminals 8 | . . . 1 7 . Botnet 3 | . . . 1 2 . Skim 5 | . . . . 5 . Fabricators . | . . . . . . Repair Stations . | . . . . . . Recycling Units 1 | . . . . 1 . Tunnel 1 | . . . . 1 . Scanalyzers . | . . . . . . Garrison Access . | . . . . . . Data Cores Recovered 1 | . . 1 . . . Used . | . . . . . . Hacking Detections 22 | . 2 5 10 5 . Full Trace Events 1 | . . 1 . . . Feedback Events . | . . . . . . Feedback Blocked . | . . . . . . Robot Schematics Acquired 2 | . . . 1 1 . Robots Built . | . . . . . . Authchips . | . . . . . . Time . | . . . . . . Total Robot Build Rating . | . . . . . . Part Schematics Acquired 3 | . 1 . 1 1 . Parts Built . | . . . . . . Authchips . | . . . . . . Time . | . . . . . . Total Part Build Rating . | . . . . . . Part Studies Acquired . | . . . . . . Parts Repaired . | . . . . . . Time . | . . . . . . Parts Recycled . | . . . . . . Recycled Matter . | . . . . . . Retrieved Matter . | . . . . . . Retrieved Components . | . . . . . . Parts Scanalyzed . | . . . . . . Part Schematics Acquired . | . . . . . . Parts Damaged . | . . . . . . Bothacking | -11 -10 -9 -9 -9 -9 ------------ Run | Yrd Mat Mat Sto Rec Scr Used RIF Installer . | . . . . . . Robots Hacked 2 | . . . . . 2 Non-combat . | . . . . . . Combat 2 | . . . . . 2 Robot Hacks Applied 2 | . . . . . 2 parse_system 2 | . . . . . 2 Relay Couplers Released . | . . . . . . Fabnet Peak Effective % . | . . . . . . Robots Rewired . | . . . . . . Allies Hacked . | . . . . . . Hacks Repelled . | . . . . . . Allies | -11 -10 -9 -9 -9 -9 -------- Run | Yrd Mat Mat Sto Rec Scr Total Allies 11 | . . . 10 . 1 Largest Group 10 | . . . 10 10 9 Highest-Rated Group 536 | . . . 88 88 536 Highest-Rated Ally 464 | . . . 16 16 464 Total Orders 5 | . . . . . 5 STAY 5 | . . . . . 5 Ally Attacks 127 | . . . 21 4 102 Total Damage 5540 | . . . 160 48 5332 Kills 41 | . . . 2 1 38 Allies Corrupted . | . . . . . . Allies Melted 1 | . . . . . 1 X0-1V1 Amusement Gains 172 | . 6 22 32 16 96 Average Entertainment 15 | . 12 12 16 16 25 Good Acts 7 | . . 2 2 1 2 Bad Acts 19 | . . 4 10 5 . Intel | -11 -10 -9 -9 -9 -9 ------- Run | Yrd Mat Mat Sto Rec Scr Active Infowar (turns) 282 | 16 266 . . . . Seismic 282 | 16 266 . . . . Robot Analysis Total 6 | . 2 1 1 2 . Derelict Logs Recovered . | . . . . . . Drone Launches . | . . . . . . Drone Recoveries . | . . . . . . Exploration | -11 -10 -9 -9 -9 -9 ------------- Run | Yrd Mat Mat Sto Rec Scr Turns Passed 7234 | 147 445 1319 1644 805 2874 Spaces Moved 3691 | 72 173 600 849 319 1678 Core 4 | 4 . . . . . Treads 3687 | 68 173 600 849 319 1678 Legs . | . . . . . . Wheels . | . . . . . . Hover . | . . . . . . Flight . | . . . . . . Fastest Speed 50 | 50 160 160 160 160 160 Average Speed 167 | 153 223 183 161 160 161 Slowest Speed 250 | 160 240 250 165 163 240 Overloaded Moves . | . . . . . . Propulsion Burnouts . | . . . . . . Robots Hopped . | . . . . . . Potential Cave-ins . | . . . . . . Cave-ins Triggered . | . . . . . . Exploration Rate (%) 52 | 5 34 37 94 64 79 Regions Visited 5 Branch Regions 3 Pre-discovered Areas 2 | . . . . 2 . Known Exits Taken 1 | . . 1 . . . Unknown Exits Taken 4 | 1 1 . 1 1 . Scrap Searched 10 | . . . . . 10 Spaces Dug 1 | . . . . 1 . Terrain Destroyed 379 | . 10 256 82 1 30 Melee . | . . . . . . Projectile 9 | . . 3 1 1 4 AOE 370 | . 10 253 81 . 26 Terrain Rammed . | . . . . . . Walls Destroyed . | . . . . . . Machines Disabled . | . . . . . . Actions | -11 -10 -9 -9 -9 -9 --------- Run | Yrd Mat Mat Sto Rec Scr Total 4466 | 92 226 731 1021 611 1785 Wait 460 | . 31 24 97 289 19 Move 3686 | 71 172 599 848 318 1678 Hop . | . . . . . . Pick Up 55 | 4 10 14 4 1 22 Fast Attach 14 | 8 . 4 . . 2 Attach 11 | . . 4 . . 7 Detach 2 | . . . . . 2 Swap 12 | . 6 3 1 . 2 Drop 32 | 1 3 11 5 1 11 Fire 124 | 8 4 59 12 1 40 Melee 47 | . . . 44 1 2 Ram . | . . . . . . Kick . | . . . . . . Crush 23 | . . 13 10 . . Escape Stasis . | . . . . . . Rewire . | . . . . . . Trap . | . . . . . . Miscellaneous . | . . . . . . Route ------- -11/Scrapyard -10/Materials -9/Materials (discovered 6 exits: [*Mat x2] / *Min x2 / *Sto x2) -9/Storage (discovered 2 exits: [*Mat] / *Rec) -9/Recycling (discovered 2 exits: *Fac / *Scr) -9/Scraptown (discovered 1 exit: [*Fac]) History --------- Turn | Location | Event 28 | -11/Scrapyard | Discovered new exit (range 16) 148 | -11/Scrapyard | Entered Materials 315 | -10/Materials | Build established: Mutant 436 | -10/Materials | Discovered new exit (range 15) 570 | -10/Materials | Made a sacrifice at D.C.S.S. Altar Unit 570 | -10/Materials | Forcibly received Sfc. Transmogifier from X0-1V1 593 | -10/Materials | Entered another Materials area 593 | -9/Materials | Evolved 2 slots: Propulsion x1, Weapon x1 684 | -9/Materials | Discovered new exit (range 9) 716 | -9/Materials | Discovered new exit (range 15) 910 | -9/Materials | Build established: Gunner 988 | -9/Materials | X0-1V1 mutated your Weapon slot to Power slot 1099 | -9/Materials | Discovered new exit (range 16) 1290 | -9/Materials | Build established: Mutant 1635 | -9/Materials | X0-1V1 mutated your Power slot to Weapon slot 1682 | -9/Materials | Discovered new exit (range 16) 1683 | -9/Materials | Identified exit to Mines 1683 | -9/Materials | Identified exit to Storage 1912 | -9/Materials | Entered Storage 2725 | -9/Storage | X0-1V1 foreshadows a heat wave 2847 | -9/Storage | Discovered new exit (range 16) 2887 | -9/Storage | Core integrity fell below 50% 2965 | -9/Storage | Ambient heat levels rising (+10) 3059 | -9/Storage | Used back door to open Recycling access 3059 | -9/Storage | Discovered new exit (range 5) 3120 | -9/Storage | Ambient heat levels rising (+10) 3126 | -9/Storage | X0-1V1 announced a LAN party 3330 | -9/Storage | X0-1V1 vaporized surrounding terrain (radius 20) 3363 | -9/Storage | Ambient heat levels falling (-10) 3384 | -9/Storage | Assisted by bots powering up and referring to "LRC-V3" 3556 | -9/Storage | Entered Recycling 3556 | -9/Recycling | Accompanied by 10 allies 3672 | -9/Recycling | Build established: Commander-Mutant 3860 | -9/Recycling | X0-1V1 added 0b10 threat records associated with you (considerable) 3874 | -9/Recycling | Discovered new exit (range 9) 4042 | -9/Recycling | Identified exit to Factory 4051 | -9/Recycling | Scanned before Scraplab entrance 4095 | -9/Recycling | Learned location of 1 exit from Storage 4206 | -9/Recycling | Learned location of 2 exits from Materials 4208 | -9/Recycling | Learned Materials stockpile data 4219 | -9/Recycling | Learned Materials terminal intel 4308 | -9/Recycling | Learned Storage emergency access door positions 4334 | -9/Recycling | Entered Scraplab 4347 | -9/Recycling | Discovered new exit (range 2) 4361 | -9/Recycling | Entered Scraptown 4361 | -9/Scraptown | Accompanied by 9 allies 4361 | -9/Scraptown | System corruption cleaned by C-Scrubber 4420 | -9/Scraptown | Heard Great Nut preacher, LISTEN AND RECITE! 4444 | -9/Scraptown | Visited Red Mages 4457 | -9/Scraptown | Visited Assassins FH 4739 | -9/Scraptown | Visited SPCMW 4755 | -9/Scraptown | Visited CPS Storage 4785 | -9/Scraptown | Visited Shadow of the Wyrm 4801 | -9/Scraptown | Visited Bundlers 4868 | -9/Scraptown | Visited Awakened 4937 | -9/Scraptown | Visited UFD Registry 4937 | -9/Scraptown | Registered with UFD as "Nukecycle" 4975 | -9/Scraptown | Visited Infowarlord's Domain 5019 | -9/Scraptown | Visited Curators Association 5065 | -9/Scraptown | Visited Science Testing Area 5115 | -9/Scraptown | Visited A0-MCA Data Center 5127 | -9/Scraptown | Given an A- rating by A0-MCA 5137 | -9/Scraptown | Found A0-MCA's Component Scanner 5159 | -9/Scraptown | Visited Cartography Club 5231 | -9/Scraptown | Visited DA-N13 Charitable Foundation 5246 | -9/Scraptown | Found DCF Scrap (29 items) 5280 | -9/Scraptown | Visited Abandonware Association 5297 | -9/Scraptown | Learned abandonware demo "TRNCOAT.EXE" 5297 | -9/Scraptown | Learned abandonware demo "POISON.EXE" 5338 | -9/Scraptown | Visited Chapter 10 5348 | -9/Scraptown | Build established: Commander-Tank 5944 | -9/Scraptown | Discovered new exit (range 11) 6070 | -9/Scraptown | Build established: Commander-Mutant 7032 | -9/Scraptown | X0-1V1 brought Wyrm Statue to life 7032 | -9/Scraptown | Attacked by Scraptown defenders 7079 | -9/Scraptown | Core integrity fell below 20% 7139 | -9/Scraptown | Destroyed 8 combat bots 7217 | -9/Scraptown | X0-1V1 rescued you from certain death 7235 | -9/Scraptown | Destroyed by T6-YXL(E) with Barrage Gun Last Messages --------------- 07224_ Critical hit (Destroy). 07224_ Arm. Medium Treads destroyed. 07225_ Penetrated by Siege Slug. 07225_ Siege Slug penetrates Wall. 07227_ Penetrated by Siege Slug. 07227_ Hvy. Treads destroyed. 07227_ Siege Slug penetrates Wall. 07229_ Hvy. Particle Cannon destroyed. 07229_ Penetrated by Siege Slug. 07229_ Imp. EM Shotgun destroyed. 07229_ Knocked back. 07229_ Penetrated by Siege Slug. 07230_ X0-1V1 is amused. 07231_ Hvy. Particle Cannon destroyed. 07231_ Penetrated by Siege Slug. 07233_ The unstable cave ceiling collapses. 07233_ Acquired 12 matter. 07233_ Penetrated by Siege Slug. 07233_ Siege Slug penetrates Wall. 07235_ X0-1V1 bursts into laughter! Map ----- +----------------------------------------------------+ | % | | | | | | ###### ########### # #######"" """"### | | #????# #?????????## ##????#" %%"#?? | | #????" "?????##??# # ####?#" !]""#?? | | #??? " " ???? ?## """"#?#" """#?? | | #""" ""#??" "??### ### ! ""#?#" """#?? | | #""" "#? " " ?#"" """ ! "#?#"""""""#?? | | #""" "#?"""" """"?#" "" %= ""#?#########?? | | #"" "#???## ##???#" * = "#???????????? | | #" "#????? ?????#" g E #!%!# ##???????????? | | #?"" ""#????? ?????#" "" rTT## ## ###??????????# | | #?## ###????? ?????#" " TT# = #?????????#" | | #??? ??????? ?????#" """"p #! !![ #?????????# | | #???##??????? ?????##" [# % #?????????#" | | ##??????????? ?????## #### #[ * #?????????# | | ############ ###### ## # * #????????#" | | =%!% =% ##???????# | | = # %= # #??????#" | | ################### # !! ! # #?????# | | ##?????????????????### ]!!! %! % %[ #????# | | ##################### %!]!! ! # # ###### | | """""""##"" "" """" " #%!%%== | | " "##" " " # !]!]! =% | | ![ "## %! ; @]!=E! | | " !| "##""! %%[* ! % | | " [![ "##"%| ; [%=*! ! E | | " !![ "##""!= ; !==%[;#;#### #"##### | | " =*[ "#### ## ; =[=###?????????????# | | " [|] "#?! ! # ; %![#?????########??# | | " "## !!# # = =#?????# ## | | """" ""## [ !# = % #????????""""" | | #### ####!! [#" " " " # ! #????? "" "" # | | #### ####! /=#""" """ ; #????? " " # | | """" ""##############;#; #??????" "?# | | " "#????????????# ?; #??????" "?# | | " "" "#????????????##?# #????? " ??# | | " "" "#????????######## #??????"" "??# | | " "#?????#"""""""""# #?????? """""???# | | ""#?????#" #??????? ????# | | " """""#?????#" # #???????????????# | | """""""#?????#" """ # #???????????????# | | """""""??????#" """ ?# #???????????????# | | ######?????????? """ ?# | ################# | | ########???????? ??# | | #"""X""#??????? ??# | | #" "#???????"""""???# | | #" "#???????#####???# | | #" "#?????????####### | +----------------------------------------------------+ Best States ------------- Heat Dissipation 28 Energy Generation 23 Energy Capacity 1600 Matter Stores 300 Matter Capacity 300 Sight Range 19 Terrain Scan Density 10 Armor Coverage 150 Evasion (%) 40 Recoil Reduction 3 Authchip Count 1 Item Schematics ----------------- Hcp. Storage Unit | -10/Materials | Hacked Huge Storage Unit | -9/Storage | Hacked Matter Filter | -9/Recycling | Hacked Robot Schematics ------------------ M-13 Machinist | -9/Storage | Hacked G-34 Mercenary | -9/Recycling | Hacked Fabricated ------------ Nothing Repaired ---------- Nothing Studied --------- None Alien Tech Used ----------------- None Achievements -------------- None Challenges ------------ None Game ------ Seed ShieldSuperquantumHumpback Manual? 0 Play Time 00:49:59 Cumulative 1779.2 hours Start 2026.09.06 @ 21:05:16 End 2026.09.06 @ 22:04:40 Sessions 1 Manual Loads 0 Difficulty Rogue Special Mode None Game No. 538 Rogue 530 Adventurer 4 Explorer 4 Win Type - Total 71 Types 31/10/5/4/2/5/7/2/3/2 Lore% 97 Gallery% 96 Achievement% 92 Wizard Run 0 Options --------- Layout 0 ASCII 0 Keyboard 0 Movement Numpad Keybinds 0 Fullscreen 2 Font 18/SmallcapsGlow Map View 76x50 Zoom Use 0% Tactical HUD 1 Map Filters NONE Filters NONE Steam 1 RUN: 66ccd52d-a121-4465-8349-f3a4ee821690